fUST/lending_fUST_20240820
["ID","MTS","AMOUNT","RATE_DAILY","PERIOD"]
[335361467,1724160639038,-500.0,0.00013698,2]
[335361468,1724160639048,-500.0,0.00013698,2]
[335361469,1724160639059,-500.0,0.00013698,2]
[335361470,1724160639069,-500.0,0.00013698,2]
[335361471,1724160639081,-500.0,0.00013698,2]
[335361472,1724160639090,-500.0,0.00013698,2]
[335361473,1724160639099,-500.0,0.00013698,2]
[335361474,1724160639110,-500.0,0.00013698,2]
[335361475,1724160639122,-500.0,0.00013698,2]
[335361476,1724160639133,-500.0,0.00013698,2]
[335361477,1724160639143,-500.0,0.00013698,2]
[335361478,1724160639153,-500.0,0.00013698,2]
[335361479,1724160639165,-200.0,0.00013698,2]
[335361480,1724160639176,-500.0,0.00013698,2]
[335361481,1724160639187,-500.0,0.00013698,2]
[335361482,1724160639197,-500.0,0.00013698,2]
[335361483,1724160639208,-500.0,0.00013698,2]
[335361484,1724160639220,-500.0,0.00013698,2]
[335361485,1724160639230,-356.22180046,0.00013698,2]
[335361486,1724160639240,-200.37590733,0.00013698,2]
[335361487,1724160639250,-3000.0,0.00013699,2]
[335361488,1724160639261,-399.39192,0.00013699,2]
[335361489,1724160639273,-2727.9024512,0.00013699,2]
[335361490,1724160639283,-194.83065114,0.00013699,2]
[335361491,1724160639293,-521.27886074,0.00013699,2]
[335361492,1724160639302,-521.27886074,0.00013699,2]
[335361493,1724160639314,-521.27886074,0.00013699,2]
[335361494,1724160639323,-521.27886074,0.00013699,2]
[335361495,1724160639334,-521.27886074,0.00013699,2]
[335361496,1724160639345,-521.27886074,0.00013699,2]
[335361497,1724160639356,-521.27886074,0.00013699,2]
[335361498,1724160639365,-521.27886074,0.00013699,2]
[335361499,1724160639375,-521.27886074,0.00013699,2]
[335361500,1724160639385,-521.27886074,0.00013699,2]
[335361501,1724160639396,-521.27886074,0.00013699,2]
[335361502,1724160639407,-521.27886074,0.00013699,2]
[335361503,1724160639417,-521.27886074,0.00013699,2]
[335361504,1724160639428,-521.27886074,0.00013699,2]
[335361505,1724160639438,-521.27886074,0.00013699,2]
[335361506,1724160639449,-521.27886074,0.00013699,2]
[335361507,1724160639459,-521.27886074,0.00013699,2]
[335361508,1724160639471,-521.27886074,0.00013699,2]
[335361509,1724160639488,-521.27886074,0.00013699,2]
[335361510,1724160639498,-521.27886074,0.00013699,2]
[335361511,1724160639510,-521.27886074,0.00013699,2]
[335361512,1724160639521,-521.27886074,0.00013699,2]
[335361513,1724160639532,-521.27886074,0.00013699,2]
[335361514,1724160639542,-521.27886074,0.00013699,2]
[335361515,1724160639551,-521.27886074,0.00013699,2]
[335361516,1724160639562,-521.27886074,0.00013699,2]
[335361517,1724160639572,-521.27886074,0.00013699,2]
[335361518,1724160639583,-521.27886074,0.00013699,2]
[335361519,1724160639593,-521.27886074,0.00013699,2]
[335361520,1724160639605,-521.27886074,0.00013699,2]
[335361521,1724160639616,-521.27886074,0.00013699,2]
[335361522,1724160639626,-521.27886074,0.00013699,2]
[335361523,1724160639635,-521.27886074,0.00013699,2]
[335361524,1724160639644,-521.27886074,0.00013699,2]
[335361526,1724160639654,-521.27886074,0.00013699,2]
[335361529,1724160639663,-521.27886074,0.00013699,2]
[335361531,1724160639673,-521.27886074,0.00013699,2]
[335361533,1724160639682,-521.27886074,0.00013699,2]
[335361535,1724160639693,-521.27886074,0.00013699,2]
[335361537,1724160639703,-521.27886074,0.00013699,2]
[335361538,1724160639712,-521.27886074,0.00013699,2]
[335361539,1724160639723,-521.27886074,0.00013699,2]
[335361540,1724160639732,-521.27886074,0.00013699,2]
[335361541,1724160639741,-521.27886074,0.00013699,2]
[335361542,1724160639750,-521.27886074,0.00013699,2]
[335361543,1724160639761,-521.27886074,0.00013699,2]
[335361544,1724160639771,-521.27886074,0.00013699,2]
[335361546,1724160639780,-521.27886074,0.00013699,2]
[335361548,1724160639794,-521.27886074,0.00013699,2]
[335361550,1724160639806,-521.27886074,0.00013699,2]
[335361551,1724160639817,-521.27886074,0.00013699,2]
[335361552,1724160639828,-521.27886074,0.00013699,2]
[335361553,1724160639837,-521.27886074,0.00013699,2]
[335361554,1724160639849,-521.27886074,0.00013699,2]
[335361555,1724160639860,-521.27886074,0.00013699,2]
[335361556,1724160639870,-521.27886074,0.00013699,2]
[335361557,1724160639883,-521.27886074,0.00013699,2]
[335361558,1724160639894,-521.27886074,0.00013699,2]
[335361559,1724160639903,-521.27886074,0.00013699,2]
[335361560,1724160639914,-521.27886074,0.00013699,2]
[335361561,1724160639925,-521.27886074,0.00013699,2]
[335361562,1724160639935,-521.27886074,0.00013699,2]
[335361563,1724160639945,-521.27886074,0.00013699,2]
[335361564,1724160639955,-521.27886074,0.00013699,2]
[335361565,1724160640094,-521.27886074,0.00013699,2]
[335361566,1724160640105,-155.410848,0.000137,2]
[335361567,1724160640116,-195.63337011,0.00013971,2]
[335361569,1724160640127,-154.76012181,0.00013971,2]
[335361571,1724160640137,-191613.97456334,0.00014,5]
[335361572,1724160640148,-20718.20140944,0.00014,4]
[335361573,1724160640158,-150.112233,0.00014,2]
[335361574,1724160640168,-153.0,0.00014162,2]
[335361575,1724160640178,-153.0,0.00014162,2]
[335361576,1724160640189,-154.76012181,0.00014245,2]
[335361577,1724160640198,-160.87448942,0.00014245,2]
[335361578,1724160640207,-161.55114082,0.00014245,2]
[335361579,1724160640218,-191.89440015,0.00014245,2]
[335361580,1724160640227,-750.0,0.00014247,2]
[335361581,1724160640238,-200.0,0.0001435,2]
[335361582,1724160640249,-150.112233,0.000144,2]
[335361583,1724160640259,-1739.0,0.00014413,2]
[335361584,1724160640269,-96894.1231134,0.00014488,2]
[335361585,1724160640278,-199.13403479,0.00014519,2]
[335361586,1724160640288,-309.47390132,0.00014519,2]
[335361587,1724160640298,-154.84370907,0.00014519,2]
[335361588,1724160640308,-155.29015012,0.00014519,2]
[335361589,1724160640318,-155.68909977,0.00014519,2]
[335361590,1724160640331,-200.0,0.00014519,2]
[335361591,1724160640342,-154.76012181,0.00014519,2]
[335361592,1724160640352,-197.33180704,0.00014519,2]
[335361593,1724160640363,-217.25387931,0.00014519,2]
[335361594,1724160640374,-288.30937481,0.00014519,2]
[335361595,1724160640385,-269.93873618,0.00014519,7]
[335361596,1724160640396,-154.76012181,0.00014519,2]
[335361597,1724160640406,-520.67910379,0.00014519,2]
[335361598,1724160640415,-210.30757441,0.00014519,2]
[335361599,1724160640424,-182.97463677,0.00014519,2]
[335361600,1724160640435,-154.87224043,0.00014519,2]
[335361601,1724160640445,-306.73137352,0.00014519,2]
[335361602,1724160640457,-305.00248452,0.00014519,2]
[335361603,1724160640469,-154.76012181,0.00014519,2]
[335361604,1724160640482,-154.76012181,0.00014519,2]
[335361605,1724160640493,-154.76012181,0.00014519,2]
[335361606,1724160640502,-240.23526797,0.00014519,2]
[335361607,1724160640514,-150.112233,0.000147,2]
[335361608,1724160640524,-5117.28593988,0.00014788,2]
[335361609,1724160640534,-5117.28593988,0.00014999,2]
[335361610,1724160640545,-1000.0,0.00015,15]
[335361611,1724160640557,-237.35486148,0.00015,2]
[335361612,1724160640569,-150.112233,0.000151,2]
[335361613,1724160640581,-5117.28593988,0.00015122,2]
[335361614,1724160640590,-4518.62256853,0.00015317,2]
[335361615,1724160640600,-150.112233,0.000154,2]
[335361616,1724160640610,-34764.3086769,0.00015534,2]
[335361617,1724160640621,-5117.28593988,0.0001558,2]
[335361618,1724160640632,-5117.28593988,0.00015632,2]
[335361619,1724160640643,-478.67831481,0.000157,2]
[335361620,1724160640654,-150.112233,0.000158,2]
[335361621,1724160640664,-225.56005,0.0001589,2]
[335361622,1724160640675,-80432.60358854,0.00015999,2]
[335361623,1724160640685,-1000.0,0.00016,16]
[335361624,1724160640697,-5117.28593988,0.00016077,2]
[335361625,1724160640708,-150.112233,0.000161,2]
[335361626,1724160640719,-5117.28593988,0.00016243,2]
[335361627,1724160640730,-136969.90576,0.00016437,2]
[335361628,1724160640740,-500.0,0.00016438,2]
[335361629,1724160640750,-500.0,0.00016438,2]
[335361630,1724160640759,-501.51002754,0.00016438,2]
[335361631,1724160640770,-500.0,0.00016438,2]
[335361632,1724160640780,-503.79179135,0.00016438,2]
[335361633,1724160640791,-500.0,0.00016438,2]
[335361634,1724160640802,-500.0,0.00016438,2]
[335361635,1724160640813,-505.84789719,0.00016438,2]
[335361636,1724160640825,-500.0,0.00016438,2]
[335361637,1724160640836,-500.0,0.00016438,2]
[335361638,1724160640846,-500.0,0.00016438,2]
[335361639,1724160640857,-388.03666403,0.00016438,2]
[335361640,1724160640869,-302.02792004,0.00016438,2]
[335361641,1724160640880,-503.26613648,0.00016438,2]
[335361642,1724160640890,-565.00412965,0.00016438,2]
[335361643,1724160640901,-500.0,0.00016438,2]
[335361644,1724160640910,-505.54129742,0.00016438,2]
[335361645,1724160640921,-500.0,0.00016438,2]
[335361646,1724160640930,-500.0,0.00016438,2]
[335361647,1724160640940,-2000.0,0.00016438,2]
[335361648,1724160640949,-500.0,0.00016438,2]
[335361649,1724160640958,-500.0,0.00016438,2]
[335361650,1724160640967,-500.0,0.00016438,2]
[335361651,1724160640976,-500.0,0.00016438,2]
[335361652,1724160640988,-505.56050901,0.00016438,2]
[335361653,1724160640999,-500.0,0.00016438,2]
[335361654,1724160641008,-500.0,0.00016438,2]
[335361655,1724160641017,-500.0,0.00016438,2]
[335361656,1724160641027,-502.98749075,0.00016438,2]
[335361657,1724160641039,-501.83754035,0.00016438,2]
[335361658,1724160641050,-500.0,0.00016438,2]
[335361659,1724160641063,-504.25281435,0.00016438,2]
[335361660,1724160641073,-503.65840055,0.00016438,2]
[335361661,1724160641083,-500.0,0.00016438,2]
[335361662,1724160641094,-500.0,0.00016438,2]
[335361663,1724160641106,-500.0,0.00016438,2]
[335361664,1724160641118,-571.95315328,0.00016438,2]
[335361665,1724160641129,-200.0,0.00016438,2]
[335361666,1724160641138,-352.03186202,0.00016438,2]
[335361667,1724160641147,-515.07755243,0.00016438,2]
[335361668,1724160641157,-264.5246224,0.00016438,2]
[335361669,1724160641166,-348.0316953,0.00016438,2]
[335361670,1724160641175,-504.27669936,0.00016438,2]
[335361671,1724160641184,-505.25509018,0.00016438,2]
[335361672,1724160641193,-505.03545993,0.00016438,2]
[335361673,1724160641203,-507.29814769,0.00016438,2]
[335361674,1724160641212,-500.0,0.00016438,2]
[335361675,1724160641221,-500.0,0.00016438,2]
[335361676,1724160641230,-500.0,0.00016438,2]
[335361677,1724160641240,-500.0,0.00016438,2]
[335361678,1724160641249,-502.6666143,0.00016438,2]
[335361679,1724160641258,-500.0,0.00016438,2]
[335361680,1724160641268,-500.98672507,0.00016438,2]
[335361681,1724160641277,-500.0,0.00016438,2]
[335361682,1724160641286,-501.97462119,0.00016438,2]
[335361683,1724160641295,-500.0,0.00016438,2]
[335361684,1724160641304,-500.0,0.00016438,2]
[335361685,1724160641313,-500.0,0.00016438,2]
[335361686,1724160641323,-500.0,0.00016438,2]
[335361687,1724160641333,-500.0,0.00016438,2]
[335361688,1724160641346,-502.04518582,0.00016438,2]
[335361689,1724160641356,-500.0,0.00016438,2]
[335361690,1724160641365,-500.0,0.00016438,2]
[335361691,1724160641374,-500.0,0.00016438,2]
[335361692,1724160641384,-500.0,0.00016438,2]
[335361693,1724160641394,-503.30289728,0.00016438,2]
[335361694,1724160641404,-500.0,0.00016438,2]
[335361695,1724160641414,-500.0,0.00016438,2]
[335361696,1724160641423,-500.0,0.00016438,2]
[335361697,1724160641432,-502.79483169,0.00016438,2]
[335361698,1724160641442,-500.0,0.00016438,2]
[335361699,1724160641451,-500.0,0.00016438,2]
[335361700,1724160641461,-504.44859994,0.00016438,2]
[335361701,1724160641470,-500.0,0.00016438,2]
[335361702,1724160641479,-554.57895789,0.00016438,2]
[335361703,1724160641489,-503.54449928,0.00016438,2]
[335361704,1724160641498,-503.06181632,0.00016438,2]
[335361705,1724160641508,-500.0,0.00016438,2]
[335361706,1724160641517,-500.0,0.00016438,2]
[335361707,1724160641526,-507.616974,0.00016438,2]
[335361708,1724160641536,-500.0,0.00016438,2]
[335361709,1724160641545,-502.67785879,0.00016438,2]
[335361710,1724160641554,-500.0,0.00016438,2]
[335361711,1724160641564,-503.47722121,0.00016438,2]
[335361712,1724160641573,-500.0,0.00016438,2]
[335361713,1724160641586,-500.0,0.00016438,2]
[335361714,1724160641595,-500.0,0.00016438,2]
[335361715,1724160641604,-504.0261039,0.00016438,2]
[335361716,1724160641613,-500.0,0.00016438,2]
[335361717,1724160641622,-501.32968299,0.00016438,2]
[335361718,1724160641631,-505.10556489,0.00016438,2]
[335361719,1724160641640,-500.0,0.00016438,2]
[335361720,1724160641649,-500.0,0.00016438,2]
[335361721,1724160641658,-500.0,0.00016438,2]
[335361722,1724160641668,-500.0,0.00016438,2]
[335361723,1724160641677,-501.27584992,0.00016438,2]
[335361724,1724160641686,-500.0,0.00016438,2]
[335361725,1724160641695,-501.84685519,0.00016438,2]
[335361726,1724160641703,-500.0,0.00016438,2]
[335361727,1724160641713,-513.20656849,0.00016438,2]
[335361728,1724160641723,-500.36598369,0.00016438,2]
[335361729,1724160641731,-500.0,0.00016438,2]
[335361730,1724160641741,-505.48695279,0.00016438,2]
[335361731,1724160641750,-500.0,0.00016438,2]
[335361732,1724160641760,-562.61799133,0.00016438,2]
[335361733,1724160641769,-500.0,0.00016438,2]
[335361734,1724160641778,-500.0,0.00016438,2]
[335361735,1724160641789,-501.3616432,0.00016438,2]
[335361736,1724160641800,-500.0,0.00016438,2]
[335361737,1724160641810,-500.0,0.00016438,2]
[335361738,1724160641822,-704.48,0.00016438,2]
[335361739,1724160641835,-500.0,0.00016438,2]
[335361740,1724160641846,-1361.02,0.00016438,2]
[335361741,1724160641857,-500.0,0.00016438,2]
[335361742,1724160641867,-500.0,0.00016438,2]
[335361743,1724160641880,-500.0,0.00016438,2]
[335361744,1724160641891,-500.0,0.00016438,2]
[335361745,1724160641901,-500.0,0.00016438,2]
[335361746,1724160641911,-500.0,0.00016438,2]
[335361747,1724160641922,-500.0,0.00016438,2]
[335361748,1724160641931,-500.0,0.00016438,2]
[335361749,1724160641942,-500.0,0.00016438,2]
[335361750,1724160641953,-565.6,0.00016438,2]
[335361751,1724160641963,-500.0,0.00016438,2]
[335361752,1724160641975,-500.0,0.00016438,2]
[335361753,1724160641989,-500.0,0.00016438,2]
[335361754,1724160641998,-500.0,0.00016438,2]
[335361755,1724160642008,-500.0,0.00016438,2]
[335361756,1724160642017,-500.0,0.00016438,2]
[335361757,1724160642027,-765.44,0.00016438,2]
[335361758,1724160642037,-500.0,0.00016438,2]
[335361759,1724160642047,-500.0,0.00016438,2]
[335361760,1724160642058,-513.70100758,0.00016438,2]
[335361761,1724160642071,-500.0,0.00016438,2]
[335361762,1724160642084,-500.0,0.00016438,2]
[335361763,1724160642093,-500.0,0.00016438,2]
[335361764,1724160642102,-500.0,0.00016438,2]
[335361765,1724160642111,-501.77593548,0.00016438,2]
[335361766,1724160642120,-500.0,0.00016438,2]
[335361767,1724160642131,-500.0,0.00016438,2]
[335361768,1724160642142,-500.0,0.00016438,2]
[335361769,1724160642153,-500.0,0.00016438,2]
[335361770,1724160642163,-500.0,0.00016438,2]
[335361771,1724160642174,-516.5020625,0.00016438,2]
[335361772,1724160642185,-511.70509182,0.00016438,2]
[335361773,1724160642195,-500.0,0.00016438,2]
[335361774,1724160642206,-500.0,0.00016438,2]
[335361775,1724160642217,-500.0,0.00016438,2]
[335361776,1724160642227,-500.0,0.00016438,2]
[335361777,1724160642237,-500.0,0.00016438,2]
[335361778,1724160642247,-500.0,0.00016438,2]
[335361779,1724160642258,-500.0,0.00016438,2]
[335361780,1724160642267,-500.0,0.00016438,2]
[335361781,1724160642278,-500.0,0.00016438,2]
[335361782,1724160642287,-500.0,0.00016438,2]
[335361783,1724160642297,-500.0,0.00016438,2]
[335361784,1724160642308,-520.73794309,0.00016438,2]
[335361785,1724160642319,-500.0,0.00016438,2]
[335361786,1724160642331,-500.0,0.00016438,2]
[335361787,1724160642340,-500.0,0.00016438,2]
[335361788,1724160642348,-500.0,0.00016438,2]
[335361789,1724160642358,-500.0,0.00016438,2]
[335361790,1724160642370,-568.21270628,0.00016438,2]
[335361791,1724160642380,-500.0,0.00016438,2]
[335361792,1724160642390,-500.0,0.00016438,2]
[335361793,1724160642399,-500.0,0.00016438,2]
[335361794,1724160642408,-500.0,0.00016438,2]
[335361795,1724160642418,-500.0,0.00016438,2]
[335361796,1724160642427,-500.0,0.00016438,2]
[335361797,1724160642436,-549.83356763,0.00016438,2]
[335361798,1724160642446,-500.0,0.00016438,2]
[335361799,1724160642457,-500.0,0.00016438,2]
[335361800,1724160642467,-500.0,0.00016438,2]
[335361801,1724160642477,-578.95351904,0.00016438,2]
[335361802,1724160642487,-500.0,0.00016438,2]
[335361804,1724160642497,-500.0,0.00016438,2]
[335361805,1724160642507,-500.0,0.00016438,2]
[335361806,1724160642516,-580.2306903,0.00016438,2]
[335361807,1724160642526,-500.0,0.00016438,2]
[335361808,1724160642535,-500.0,0.00016438,2]
[335361809,1724160642544,-500.0,0.00016438,2]
[335361810,1724160642555,-500.0,0.00016438,2]
[335361811,1724160642565,-1000.0,0.00016438,2]
[335361812,1724160642574,-500.0,0.00016438,2]
[335361813,1724160642584,-500.0,0.00016438,2]
[335361814,1724160642593,-500.0,0.00016438,2]
[335361815,1724160642602,-500.0,0.00016438,2]
[335361817,1724160642611,-209.53270833,0.00016438,2]
[335361819,1724160642621,-500.0,0.00016438,2]
[335361821,1724160642630,-500.0,0.00016438,2]
[335361823,1724160642639,-500.0,0.00016438,2]
[335361825,1724160642648,-500.0,0.00016438,2]
[335361827,1724160642658,-500.0,0.00016438,2]
[335361829,1724160642667,-500.0,0.00016438,2]
[335361830,1724160642678,-500.0,0.00016438,2]
[335361831,1724160642687,-500.0,0.00016438,2]
[335361832,1724160642696,-500.0,0.00016438,2]
[335361833,1724160642706,-500.0,0.00016438,2]
[335361834,1724160642716,-500.0,0.00016438,2]
[335361836,1724160642725,-182.2178923,0.00016438,2]
[335361837,1724160642735,-500.0,0.00016438,2]
[335361838,1724160642744,-500.0,0.00016438,2]
[335361839,1724160642752,-500.0,0.00016438,2]
[335361841,1724160642762,-500.0,0.00016438,2]
[335361843,1724160642771,-500.0,0.00016438,2]
[335361844,1724160642780,-500.0,0.00016438,2]
[335361846,1724160642790,-500.0,0.00016438,2]
[335361848,1724160642800,-500.0,0.00016438,2]
[335361849,1724160642809,-500.0,0.00016438,2]
[335361852,1724160642819,-1692.72,0.00016438,2]
[335361853,1724160642829,-500.0,0.00016438,2]
[335361855,1724160642839,-500.0,0.00016438,2]
[335361857,1724160642848,-500.0,0.00016438,2]
[335361859,1724160642857,-500.0,0.00016438,2]
[335361861,1724160642868,-500.0,0.00016438,2]
[335361862,1724160642877,-573.51904403,0.00016438,2]
[335361863,1724160642886,-500.0,0.00016438,2]
[335361865,1724160642896,-500.0,0.00016438,2]
[335361866,1724160642906,-500.0,0.00016438,2]
[335361867,1724160642917,-500.0,0.00016438,2]
[335361868,1724160642927,-500.0,0.00016438,2]
[335361869,1724160642938,-500.0,0.00016438,2]
[335361870,1724160642948,-488.4,0.00016438,2]
[335361871,1724160642958,-226.7,0.00016438,2]
[335361872,1724160642969,-500.0,0.00016438,2]
[335361873,1724160642980,-903.72,0.00016438,2]
[335361874,1724160642994,-500.0,0.00016438,2]
[335361875,1724160643003,-500.0,0.00016438,2]
[335361876,1724160643013,-500.0,0.00016438,2]
[335361877,1724160643022,-257.98288227,0.00016438,2]
[335361878,1724160643033,-500.0,0.00016438,2]
[335361879,1724160643042,-500.0,0.00016438,2]
[335361880,1724160643052,-252.49527329,0.00016438,2]
[335361881,1724160643063,-500.0,0.00016438,2]
[335361882,1724160643073,-500.0,0.00016438,2]
[335361883,1724160643085,-1665.29,0.00016438,2]
[335361884,1724160643096,-500.0,0.00016438,2]
[335361885,1724160643107,-500.0,0.00016438,2]
[335361886,1724160643118,-500.0,0.00016438,2]
[335361887,1724160643129,-500.0,0.00016438,2]
[335361888,1724160643138,-500.0,0.00016438,2]
[335361889,1724160643147,-500.0,0.00016438,2]
[335361890,1724160643157,-500.0,0.00016438,2]
[335361891,1724160643166,-506.23259312,0.00016438,2]
[335361892,1724160643175,-500.0,0.00016438,2]
[335361902,1724160643291,-500.0,0.00016438,2]
[335361905,1724160643301,-500.0,0.00016438,2]
[335361906,1724160643311,-500.0,0.00016438,2]
[335361907,1724160643320,-500.0,0.00016438,2]
[335361908,1724160643331,-500.0,0.00016438,2]
[335361909,1724160643340,-500.0,0.00016438,2]
[335361911,1724160643350,-504.06693581,0.00016438,2]
[335361913,1724160643359,-155.93219572,0.00016438,2]
[335361914,1724160643368,-500.0,0.00016438,2]
[335361915,1724160643378,-396.90635721,0.00016438,2]
[335361916,1724160643388,-500.0,0.00016438,2]
[335361917,1724160643401,-500.0,0.00016438,2]
[335361918,1724160643413,-500.85401284,0.00016438,2]
[335361919,1724160643423,-500.0,0.00016438,2]
[335361920,1724160643432,-500.0,0.00016438,2]
[335361921,1724160643443,-500.0,0.00016438,2]
[335361922,1724160643454,-500.0,0.00016438,2]
[335361923,1724160643464,-500.0,0.00016438,2]
[335361924,1724160643473,-500.0,0.00016438,2]
[335361925,1724160643483,-500.0,0.00016438,2]
[335361926,1724160643492,-516.57277902,0.00016438,2]
[335361927,1724160643502,-1086.16,0.00016438,2]
[335361928,1724160643511,-461.08774715,0.00016438,2]
[335361929,1724160643522,-505.48768471,0.00016438,2]
[335361930,1724160643531,-502.54048868,0.00016438,2]
[335361931,1724160643543,-500.0,0.00016438,2]
[335361932,1724160643553,-500.0,0.00016438,2]
[335361933,1724160643563,-500.0,0.00016438,2]
[335361934,1724160643574,-500.0,0.00016438,2]
[335361935,1724160643586,-500.0,0.00016438,2]
[335361936,1724160643598,-500.0,0.00016438,2]
[335361937,1724160643609,-500.0,0.00016438,2]
[335361938,1724160643620,-500.0,0.00016438,2]
[335361939,1724160643630,-500.0,0.00016438,2]
[335361940,1724160643639,-500.0,0.00016438,2]
[335361941,1724160643650,-984.07,0.00016438,2]
[335361942,1724160643659,-500.0,0.00016438,2]
[335361943,1724160643668,-502.80527314,0.00016438,2]
[335361944,1724160643677,-500.0,0.00016438,2]
[335361945,1724160643686,-500.0,0.00016438,2]
[335361946,1724160643695,-500.0,0.00016438,2]
[335361947,1724160643704,-501.93043107,0.00016438,2]
[335361948,1724160643714,-500.0,0.00016438,2]
[335361949,1724160643723,-500.0,0.00016438,2]
[335361950,1724160643733,-511.75739184,0.00016438,2]
[335361951,1724160643742,-500.0,0.00016438,2]
[335361952,1724160643753,-501.59760848,0.00016438,2]
[335361953,1724160643762,-500.0,0.00016438,2]
[335361954,1724160643773,-500.0,0.00016438,2]
[335361955,1724160643782,-328.20491338,0.00016438,2]
[335361956,1724160643793,-500.0,0.00016438,2]
[335361957,1724160643803,-500.0,0.00016438,2]
[335361958,1724160643813,-500.94140384,0.00016438,2]
[335361959,1724160643822,-500.0,0.00016438,2]
[335361960,1724160643834,-500.0,0.00016438,2]
[335361961,1724160643844,-500.0,0.00016438,2]
[335361962,1724160643855,-500.0,0.00016438,2]
[335361963,1724160643864,-154.76012181,0.00016438,2]
[335361964,1724160643876,-500.0,0.00016438,2]
[335361965,1724160643887,-500.0,0.00016438,2]
[335361966,1724160643897,-500.0,0.00016438,2]
[335361967,1724160643908,-500.0,0.00016438,2]
[335361968,1724160643919,-500.0,0.00016438,2]
[335361969,1724160643929,-500.0,0.00016438,2]
[335361970,1724160643940,-500.11931272,0.00016438,2]
[335361971,1724160643951,-513.15007194,0.00016438,2]
[335361972,1724160643962,-503.32282124,0.00016438,2]
[335361973,1724160643973,-500.0,0.00016438,2]
[335361974,1724160643983,-512.00156767,0.00016438,2]
[335361975,1724160643996,-503.51441444,0.00016438,2]
[335361976,1724160644005,-500.0,0.00016438,2]
[335361977,1724160644014,-500.59882298,0.00016438,2]
[335361978,1724160644024,-500.0,0.00016438,2]
[335361979,1724160644035,-500.0,0.00016438,2]
[335361980,1724160644046,-500.0,0.00016438,2]
[335361981,1724160644056,-580.54371464,0.00016438,2]
[335361982,1724160644069,-500.0,0.00016438,2]
[335361983,1724160644080,-2745.62,0.00016438,2]
[335361984,1724160644091,-531.08991792,0.00016438,2]
[335361985,1724160644102,-500.0,0.00016438,2]
[335361986,1724160644112,-507.01989121,0.00016438,2]
[335361987,1724160644122,-500.0,0.00016438,2]
[335361988,1724160644132,-500.0,0.00016438,2]
[335361989,1724160644142,-500.0,0.00016438,2]
[335361990,1724160644152,-517.91262343,0.00016438,2]
[335361991,1724160644162,-500.0,0.00016438,2]
[335361992,1724160644172,-500.0,0.00016438,2]
[335361993,1724160644183,-500.0,0.00016438,2]
[335361994,1724160644192,-507.46312568,0.00016438,2]
[335361995,1724160644202,-500.0,0.00016438,2]
[335361996,1724160644213,-500.0,0.00016438,2]
[335361997,1724160644223,-500.0,0.00016438,2]
[335361998,1724160644234,-504.99504268,0.00016438,2]
[335361999,1724160644243,-506.53235921,0.00016438,2]
[335362000,1724160644254,-500.0,0.00016438,2]
[335362001,1724160644266,-500.0,0.00016438,2]
[335362002,1724160644278,-500.0,0.00016438,2]
[335362003,1724160644287,-500.0,0.00016438,2]
[335362004,1724160644297,-500.0,0.00016438,2]
[335362005,1724160644307,-500.0,0.00016438,2]
[335362006,1724160644317,-500.0,0.00016438,2]
[335362007,1724160644327,-501.39772472,0.00016438,2]
[335362008,1724160644339,-527.69639395,0.00016438,2]
[335362009,1724160644349,-500.0,0.00016438,2]
[335362010,1724160644360,-505.01381328,0.00016438,2]
[335362011,1724160644370,-500.0,0.00016438,2]